fUSD/lending_fUSD_20241209
["ID","MTS","AMOUNT","RATE_DAILY","PERIOD"]
[344669802,1733716245025,-1337.87,9.946e-05,2]
[344669803,1733716245035,-500.0,9.946e-05,2]
[344669804,1733716245045,-1560.01,9.946e-05,2]
[344669805,1733716245054,-1560.01,9.946e-05,2]
[344669806,1733716245066,-889.88,9.946e-05,2]
[344669807,1733716245075,-1560.01,9.946e-05,2]
[344669808,1733716245085,-889.88,9.946e-05,2]
[344669809,1733716245094,-1083.26708985,9.946e-05,2]
[344669810,1733716245112,-2916.49767926,9.946e-05,2]
[344669811,1733716245124,-1062.0,9.946e-05,2]
[344669812,1733716245135,-1605.60523089,9.946e-05,2]
[344669813,1733716245145,-500.0,9.946e-05,2]
[344669814,1733716245155,-500.0,9.946e-05,2]
[344669815,1733716245165,-500.0,9.946e-05,2]
[344669816,1733716245175,-500.0,9.946e-05,2]
[344669817,1733716245185,-500.0,9.946e-05,2]
[344669818,1733716245195,-500.0,9.946e-05,2]
[344669819,1733716245205,-500.0,9.946e-05,2]
[344669820,1733716245215,-500.0,9.946e-05,2]
[344669821,1733716245225,-562.75,9.946e-05,2]
[344669822,1733716245235,-562.75,9.946e-05,2]
[344669823,1733716245245,-775.97,9.946e-05,2]
[344669824,1733716245255,-500.0,9.946e-05,2]
[344669825,1733716245264,-6056.83,9.946e-05,2]
[344669826,1733716245274,-973.55,9.946e-05,2]
[344669827,1733716245284,-542.82,9.946e-05,2]
[344669828,1733716245294,-500.0,9.946e-05,2]
[344669829,1733716245304,-542.82,9.946e-05,2]
[344669830,1733716245316,-500.0,9.946e-05,2]
[344669831,1733716245326,-1258.8,9.946e-05,2]
[344669832,1733716245336,-500.0,9.946e-05,2]
[344669833,1733716245345,-933.94476911,9.946e-05,2]
[344669835,1733716246433,-324.85523089,9.946e-05,2]
[344669836,1733716246450,-329.20931746,9.946e-05,2]
[344669863,1733716248325,-500.0,9.943e-05,2]
[344669864,1733716248336,-732.25,9.944e-05,2]
[344669865,1733716248346,-500.0,9.944e-05,2]
[344669866,1733716248356,-732.25,9.945e-05,2]
[344669867,1733716248366,-500.0,9.945e-05,2]
[344669868,1733716248376,-732.25,9.945e-05,2]
[344669869,1733716248386,-500.0,9.945e-05,2]
[344669870,1733716248396,-496.0087,9.945e-05,2]
[344669871,1733716248408,-3.9913,9.945e-05,2]
[344669872,1733716248419,-170.79068254,9.946e-05,2]
[344669873,1733716248429,-500.0,9.946e-05,2]
[344669874,1733716248439,-83.38608304,9.946e-05,2]
[344669875,1733716248451,-274.89675036,9.946e-05,2]
[344669876,1733716248463,-141.7171666,9.946e-05,2]
[344669877,1733716248473,-500.0,9.946e-05,2]
[344669878,1733716248483,-355.3740549,9.946e-05,2]
[344669879,1733716248495,-144.6259451,9.946e-05,2]
[344669880,1733716248506,-198.01943631,9.946e-05,2]
[344669881,1733716248518,-1765.75396002,9.946e-05,2]
[344669882,1733716248530,-5759.37660367,9.946e-05,2]
[344669883,1733716248539,-1102.82,9.946e-05,2]
[344669884,1733716248549,-7343.22,9.946e-05,2]
[344669885,1733716248559,-500.0,9.946e-05,2]
[344669886,1733716248572,-547.44,9.946e-05,2]
[344669887,1733716248581,-4214.56,9.946e-05,2]
[344669888,1733716248589,-547.44,9.946e-05,2]
[344669889,1733716248599,-547.44,9.946e-05,2]
[344669890,1733716248608,-1229.03,9.946e-05,2]
[344669891,1733716248619,-500.0,9.946e-05,2]
[344669892,1733716248632,-1229.03,9.946e-05,2]
[344669893,1733716248642,-1451.64,9.946e-05,2]
[344669894,1733716248651,-1395.04,9.946e-05,2]
[344669895,1733716248661,-1395.04,9.946e-05,2]
[344669896,1733716248670,-500.0,9.946e-05,2]
[344669897,1733716248679,-500.0,9.946e-05,2]
[344669898,1733716248689,-283.81923955,9.946e-05,2]
[344669899,1733716248699,-505.31009452,9.946e-05,2]
[344669900,1733716248709,-11026.88,9.946e-05,2]
[344669901,1733716248718,-807.91,9.946e-05,2]
[344669902,1733716248728,-807.91,9.946e-05,2]
[344669903,1733716248738,-500.0,9.946e-05,2]
[344669904,1733716248749,-794.11,9.946e-05,2]
[344669905,1733716248759,-794.11,9.946e-05,2]
[344669906,1733716248769,-586.83,9.946e-05,2]
[344669907,1733716248779,-17657.03,9.946e-05,2]
[344669908,1733716248791,-500.0,9.946e-05,2]
[344669909,1733716248800,-500.0,9.946e-05,2]
[344669910,1733716248810,-500.0,9.946e-05,2]
[344669911,1733716248825,-500.0,9.946e-05,2]
[344669912,1733716248834,-500.0,9.946e-05,2]
[344669913,1733716248844,-500.0,9.946e-05,2]
[344669914,1733716248854,-573.3,9.946e-05,2]
[344669915,1733716248863,-2394.37,9.946e-05,2]
[344669916,1733716248873,-500.0,9.946e-05,2]
[344669917,1733716248883,-500.0,9.946e-05,2]
[344669918,1733716248894,-500.0,9.946e-05,2]
[344669919,1733716248903,-3670.05,9.946e-05,2]
[344669920,1733716248913,-2227.3,9.946e-05,2]
[344669921,1733716248923,-2227.3,9.946e-05,2]
[344669922,1733716248933,-500.0,9.946e-05,2]
[344669923,1733716248943,-500.0,9.946e-05,2]
[344669924,1733716248953,-500.0,9.946e-05,2]
[344669925,1733716248962,-500.0,9.946e-05,2]
[344669926,1733716248971,-13959.61,9.946e-05,2]
[344669927,1733716248981,-500.0,9.946e-05,2]
[344669928,1733716248990,-500.0,9.946e-05,2]
[344669929,1733716249000,-500.0,9.946e-05,2]
[344669930,1733716249009,-500.0,9.946e-05,2]
[344669931,1733716249019,-500.0,9.946e-05,2]
[344669932,1733716249029,-588.38,9.946e-05,2]
[344669933,1733716249039,-588.38,9.946e-05,2]
[344669934,1733716249049,-500.0,9.946e-05,2]
[344669935,1733716249059,-500.0,9.946e-05,2]
[344669936,1733716249071,-500.0,9.946e-05,2]
[344669937,1733716249081,-500.0,9.946e-05,2]
[344669938,1733716249090,-710.04,9.946e-05,2]
[344669939,1733716249100,-500.0,9.946e-05,2]
[344669940,1733716249110,-859.03,9.946e-05,2]
[344669941,1733716249121,-500.0,9.946e-05,2]
[344669942,1733716249131,-859.03,9.946e-05,2]
[344669943,1733716249141,-500.0,9.946e-05,2]
[344669944,1733716249151,-9529.65,9.946e-05,2]
[344669945,1733716249162,-3306.7,9.946e-05,2]
[344669946,1733716249172,-3306.7,9.946e-05,2]
[344669947,1733716249183,-3306.7,9.946e-05,2]
[344669948,1733716249193,-849.21,9.946e-05,2]
[344669949,1733716249203,-849.21,9.946e-05,2]
[344669950,1733716249213,-5374.25,9.946e-05,2]
[344669951,1733716249223,-518.09883935,9.946e-05,2]
[344669952,1733716249233,-1018.5,9.946e-05,2]
[344669953,1733716249244,-1018.5,9.946e-05,2]
[344669954,1733716249254,-1018.5,9.946e-05,2]
[344669955,1733716249264,-500.0,9.946e-05,2]
[344669956,1733716249274,-500.0,9.946e-05,2]
[344669957,1733716249284,-653.67,9.946e-05,2]
[344669958,1733716249294,-653.67,9.946e-05,2]
[344669959,1733716249304,-653.67,9.946e-05,2]
[344669960,1733716249315,-500.0,9.946e-05,2]
[344669961,1733716249325,-1257.13,9.946e-05,2]
[344669962,1733716249335,-1257.13,9.946e-05,2]
[344669963,1733716249345,-500.0,9.946e-05,2]
[344669964,1733716249355,-500.0,9.946e-05,2]
[344669965,1733716249366,-500.0,9.946e-05,2]
[344669966,1733716249376,-500.0,9.946e-05,2]
[344669967,1733716249386,-500.0,9.946e-05,2]
[344669968,1733716249397,-500.0,9.946e-05,2]
[344669969,1733716249408,-500.0,9.946e-05,2]
[344669970,1733716249418,-500.0,9.946e-05,2]
[344669971,1733716249427,-500.0,9.946e-05,2]
[344669972,1733716249438,-500.0,9.946e-05,2]
[344669973,1733716249448,-500.0,9.946e-05,2]
[344669974,1733716249458,-500.0,9.946e-05,2]
[344669975,1733716249467,-1559.74,9.946e-05,2]
[344669976,1733716249477,-578.52,9.946e-05,2]
[344669977,1733716249486,-500.0,9.946e-05,2]
[344669978,1733716249496,-578.52,9.946e-05,2]
[344669979,1733716249506,-500.0,9.946e-05,2]
[344669980,1733716249515,-578.52,9.946e-05,2]
[344669981,1733716249525,-500.0,9.946e-05,2]
[344669982,1733716249535,-500.0,9.946e-05,2]
[344669983,1733716249545,-500.0,9.946e-05,2]
[344669984,1733716249554,-500.0,9.946e-05,2]
[344669985,1733716249565,-500.0,9.946e-05,2]
[344669986,1733716249574,-411.36949293,9.946e-05,2]
[344669987,1733716249582,-10336.73,9.946e-05,2]
[344669988,1733716249591,-500.0,9.946e-05,2]
[344669989,1733716249600,-500.0,9.946e-05,2]
[344669990,1733716249610,-500.0,9.946e-05,2]
[344669992,1733716249620,-500.0,9.946e-05,2]
[344669994,1733716249631,-500.0,9.946e-05,2]
[344669995,1733716249641,-500.0,9.946e-05,2]
[344669996,1733716249650,-500.0,9.946e-05,2]
[344669997,1733716249660,-500.0,9.946e-05,2]
[344669998,1733716249670,-629.07,9.946e-05,2]
[344669999,1733716249679,-500.0,9.946e-05,2]
[344670000,1733716249688,-433.1335224,9.946e-05,2]
[344670002,1733716249699,-629.07,9.946e-05,2]
[344670004,1733716249708,-3026.98,9.946e-05,2]
[344670005,1733716249718,-4918.66,9.946e-05,2]
[344670006,1733716249727,-4918.66,9.946e-05,2]
[344670007,1733716249736,-4918.66,9.946e-05,2]
[344670008,1733716249747,-4143.76,9.946e-05,2]
[344670009,1733716249757,-4646.96,9.946e-05,2]
[344670010,1733716249766,-4646.96,9.946e-05,2]
[344670011,1733716249776,-4646.96,9.946e-05,2]
[344670012,1733716249784,-500.0,9.946e-05,2]
[344670013,1733716249795,-500.0,9.946e-05,2]
[344670014,1733716249804,-500.0,9.946e-05,2]
[344670015,1733716249816,-731.55183054,9.946e-05,2]
[344670016,1733716249825,-979.19,9.947e-05,2]
[344670017,1733716249834,-500.0,9.947e-05,2]
[344670018,1733716249843,-500.0,9.947e-05,2]
[344670019,1733716249853,-1370.8,9.947e-05,2]
[344670020,1733716249863,-500.0,9.947e-05,2]
[344670021,1733716249871,-500.33094184,9.947e-05,2]
[344670022,1733716249880,-500.0,9.947e-05,2]
[344670023,1733716249890,-500.0,9.947e-05,2]
[344670024,1733716249899,-500.0,9.947e-05,2]
[344670025,1733716249908,-500.0,9.947e-05,2]
[344670026,1733716249917,-500.415962,9.947e-05,2]
[344670027,1733716249926,-500.0,9.947e-05,2]
[344670028,1733716249935,-501.43201787,9.947e-05,2]
[344670029,1733716249945,-500.0,9.947e-05,2]
[344670030,1733716249954,-564.80651225,9.947e-05,2]
[344670031,1733716249965,-545.1,9.947e-05,2]
[344670032,1733716249974,-1119.08,9.947e-05,2]
[344670033,1733716249983,-500.0,9.947e-05,2]
[344670034,1733716249993,-500.0,9.947e-05,2]
[344670035,1733716250002,-500.0,9.947e-05,2]
[344670036,1733716250012,-500.0,9.947e-05,2]
[344670037,1733716250021,-500.0,9.947e-05,2]
[344670038,1733716250031,-500.0,9.947e-05,2]
[344670039,1733716250040,-500.24207921,9.947e-05,2]
[344670040,1733716250050,-500.0,9.947e-05,2]
[344670041,1733716250060,-500.0,9.947e-05,2]
[344670042,1733716250074,-500.0,9.947e-05,2]
[344670043,1733716250083,-621.05,9.947e-05,2]
[344670044,1733716250093,-500.0,9.947e-05,2]
[344670045,1733716250103,-500.0,9.947e-05,2]
[344670046,1733716250113,-842.43,9.947e-05,2]
[344670047,1733716250123,-1416.82,9.947e-05,2]
[344670048,1733716250132,-500.0,9.947e-05,2]
[344670049,1733716250142,-500.0,9.947e-05,2]
[344670050,1733716250153,-500.0,9.947e-05,2]
[344670051,1733716250163,-503.26859292,9.947e-05,2]
[344670052,1733716250172,-500.0,9.947e-05,2]
[344670053,1733716250182,-500.0,9.947e-05,2]
[344670054,1733716250192,-501.62746912,9.947e-05,2]
[344670055,1733716250202,-804.49,9.947e-05,2]
[344670056,1733716250212,-500.0,9.947e-05,2]
[344670057,1733716250222,-504.62,9.947e-05,2]
[344670058,1733716250232,-500.0,9.947e-05,2]
[344670059,1733716250242,-500.0,9.947e-05,2]
[344670060,1733716250252,-500.0,9.947e-05,2]
[344670061,1733716250261,-500.0,9.947e-05,2]
[344670062,1733716250271,-500.0,9.947e-05,2]
[344670063,1733716250281,-502.17346291,9.947e-05,2]
[344670064,1733716250290,-646.09,9.947e-05,2]
[344670065,1733716250300,-500.0,9.947e-05,2]
[344670066,1733716250310,-500.0,9.947e-05,2]
[344670067,1733716250324,-500.0,9.947e-05,2]
[344670068,1733716250333,-500.0,9.947e-05,2]
[344670069,1733716250343,-500.0,9.947e-05,2]
[344670070,1733716250353,-1446.59,9.947e-05,2]
[344670071,1733716250363,-664.64,9.947e-05,2]
[344670072,1733716250373,-500.0,9.947e-05,2]
[344670073,1733716250383,-579.86,9.947e-05,2]
[344670074,1733716250393,-500.0,9.947e-05,2]
[344670075,1733716250402,-753.08,9.947e-05,2]
[344670076,1733716250412,-500.0,9.947e-05,2]
[344670077,1733716250422,-551.0,9.947e-05,2]
[344670078,1733716250433,-963.54,9.947e-05,2]
[344670079,1733716250443,-500.0,9.947e-05,2]
[344670080,1733716250452,-1241.48,9.947e-05,2]
[344670081,1733716250462,-331.82648353,9.947e-05,2]
[344670082,1733716250471,-500.0,9.947e-05,2]
[344670083,1733716250481,-500.0,9.947e-05,2]
[344670084,1733716250491,-502.68858968,9.947e-05,2]
[344670085,1733716250501,-500.0,9.947e-05,2]
[344670086,1733716250511,-500.0,9.947e-05,2]
[344670087,1733716250520,-500.0,9.947e-05,2]
[344670088,1733716250530,-3363.59,9.947e-05,2]
[344670089,1733716250539,-500.0,9.947e-05,2]
[344670090,1733716250549,-503.13879192,9.947e-05,2]
[344670091,1733716250561,-500.0,9.947e-05,2]
[344670092,1733716250575,-500.0,9.947e-05,2]
[344670093,1733716250585,-500.0,9.947e-05,2]
[344670094,1733716250594,-500.0,9.947e-05,2]
[344670095,1733716250606,-500.0,9.947e-05,2]
[344670096,1733716250620,-594.14,9.947e-05,2]
[344670097,1733716250630,-500.0,9.947e-05,2]
[344670098,1733716250640,-500.0,9.947e-05,2]
[344670099,1733716250649,-1537.99,9.947e-05,2]
[344670100,1733716250659,-500.0,9.947e-05,2]
[344670101,1733716250669,-512.75,9.947e-05,2]
[344670102,1733716250679,-500.17301818,9.947e-05,2]
[344670103,1733716250688,-500.0,9.947e-05,2]
[344670104,1733716250698,-500.0,9.947e-05,2]
[344670105,1733716250708,-1459.05,9.947e-05,2]
[344670106,1733716250717,-501.97708073,9.947e-05,2]
[344670107,1733716250727,-500.0,9.947e-05,2]
[344670108,1733716250736,-500.0,9.947e-05,2]
[344670109,1733716250746,-500.0,9.947e-05,2]
[344670110,1733716250756,-500.0,9.947e-05,2]
[344670111,1733716250773,-500.0,9.947e-05,2]
[344670112,1733716250782,-500.0,9.947e-05,2]
[344670113,1733716250793,-500.0,9.947e-05,2]
[344670114,1733716250802,-500.0,9.947e-05,2]
[344670115,1733716250820,-500.0,9.947e-05,2]
[344670116,1733716250834,-669.82,9.947e-05,2]
[344670117,1733716250844,-500.0,9.947e-05,2]
[344670118,1733716250854,-903.62,9.947e-05,2]
[344670119,1733716250864,-500.0,9.947e-05,2]
[344670120,1733716250873,-701.9,9.947e-05,2]
[344670121,1733716250883,-645.18,9.947e-05,2]
[344670122,1733716250893,-822.44,9.947e-05,2]
[344670123,1733716250904,-832.54,9.947e-05,2]
[344670124,1733716250914,-500.0,9.947e-05,2]
[344670125,1733716250924,-1065.41,9.947e-05,2]
[344670126,1733716250934,-500.0,9.947e-05,2]
[344670127,1733716250944,-1244.51,9.947e-05,2]
[344670128,1733716250954,-1581.45,9.947e-05,2]
[344670129,1733716250964,-500.0,9.947e-05,2]
[344670130,1733716250973,-1050.22,9.947e-05,2]
[344670131,1733716250983,-240.76364478,9.947e-05,2]
[344670132,1733716250992,-500.0,9.947e-05,2]
[344670133,1733716251002,-500.0,9.947e-05,2]
[344670134,1733716251011,-889.67,9.947e-05,2]
[344670135,1733716251020,-925.01,9.947e-05,2]
[344670136,1733716251030,-534.86,9.947e-05,2]
[344670137,1733716251039,-534.86,9.947e-05,2]
[344670138,1733716251049,-534.86,9.947e-05,2]
[344670139,1733716251059,-500.0,9.947e-05,2]
[344670140,1733716251075,-502.63342107,9.947e-05,2]
[344670141,1733716251084,-503.18,9.947e-05,2]
[344670142,1733716251094,-500.0,9.947e-05,2]
[344670143,1733716251103,-1383.49,9.947e-05,2]
[344670144,1733716251114,-1383.49,9.947e-05,2]
[344670145,1733716251124,-1383.49,9.947e-05,2]
[344670146,1733716251133,-500.0,9.947e-05,2]
[344670147,1733716251143,-500.0,9.947e-05,2]
[344670148,1733716251152,-500.0,9.947e-05,2]
[344670149,1733716251162,-500.0,9.947e-05,2]
[344670150,1733716251171,-500.0,9.947e-05,2]
[344670151,1733716251181,-500.0,9.947e-05,2]
[344670152,1733716251190,-500.0,9.947e-05,2]
[344670153,1733716251200,-500.0,9.947e-05,2]
[344670154,1733716251210,-517.06,9.947e-05,2]
[344670155,1733716251220,-1005.9,9.947e-05,2]
[344670156,1733716251229,-588.09,9.947e-05,2]
[344670157,1733716251239,-588.09,9.947e-05,2]
[344670158,1733716251249,-588.09,9.947e-05,2]
[344670159,1733716251259,-840.61,9.947e-05,2]
[344670160,1733716251268,-500.0,9.947e-05,2]
[344670161,1733716251279,-500.0,9.947e-05,2]
[344670162,1733716251288,-500.0,9.947e-05,2]
[344670163,1733716251298,-500.0,9.947e-05,2]
[344670164,1733716251512,-500.0,9.947e-05,2]
[344670165,1733716251522,-500.0,9.947e-05,2]
[344670166,1733716251532,-770.7,9.947e-05,2]
[344670167,1733716251542,-500.0,9.947e-05,2]
[344670168,1733716251552,-500.0,9.947e-05,2]
[344670169,1733716251562,-500.0,9.947e-05,2]
[344670170,1733716251575,-500.0,9.947e-05,2]
[344670171,1733716251585,-618.95312618,9.947e-05,2]
[344670172,1733716251594,-500.0,9.947e-05,2]
[344670173,1733716251604,-648.48544938,9.947e-05,2]
[344670174,1733716251614,-1343.05,9.947e-05,2]
[344670175,1733716251628,-653.93,9.947e-05,2]
[344670176,1733716251638,-1343.05,9.947e-05,2]
[344670177,1733716251647,-653.93,9.947e-05,2]
[344670178,1733716251657,-1343.05,9.947e-05,2]
[344670179,1733716251668,-653.93,9.947e-05,2]
[344670180,1733716251678,-544.31752482,9.947e-05,2]
[344670181,1733716251687,-500.0,9.947e-05,2]
[344670182,1733716251697,-539.48766442,9.947e-05,2]
[344670183,1733716251707,-500.0,9.947e-05,2]
[344670184,1733716251717,-1298.61,9.947e-05,2]
[344670185,1733716251726,-1485.22,9.947e-05,2]
[344670186,1733716251738,-1485.22,9.947e-05,2]
[344670187,1733716251747,-1485.22,9.947e-05,2]
[344670188,1733716251757,-573.19,9.947e-05,2]
[344670189,1733716251766,-573.19,9.947e-05,2]
[344670190,1733716251777,-573.19,9.947e-05,2]
[344670191,1733716251786,-1467.67,9.947e-05,2]
[344670192,1733716251797,-1467.67,9.947e-05,2]
[344670193,1733716251807,-366.88100906,9.947e-05,2]
[344670194,1733716251819,-1040.37,9.947e-05,2]
[344670195,1733716251828,-521.58,9.947e-05,2]
[344670196,1733716251838,-521.58,9.947e-05,2]
[344670197,1733716251847,-521.58,9.947e-05,2]
[344670198,1733716251856,-500.0,9.947e-05,2]
[344670199,1733716251866,-500.0,9.947e-05,2]
[344670200,1733716251877,-500.0,9.947e-05,2]
[344670201,1733716251886,-500.0,9.947e-05,2]
[344670202,1733716251895,-500.0,9.947e-05,2]
[344670203,1733716251904,-1369.92,9.947e-05,2]
[344670204,1733716251914,-1135.27,9.947e-05,2]
[344670205,1733716251924,-1135.27,9.947e-05,2]
[344670206,1733716251933,-1135.27,9.947e-05,2]
[344670207,1733716251943,-1233.22,9.947e-05,2]
[344670208,1733716251952,-2121.85,9.947e-05,2]
[344670209,1733716251961,-935.77,9.947e-05,2]
[344670210,1733716251971,-935.77,9.947e-05,2]
[344670211,1733716251979,-935.77,9.947e-05,2]
[344670212,1733716251989,-641.33835035,9.947e-05,2]
[344670213,1733716251998,-500.0,9.947e-05,2]
[344670214,1733716252008,-500.0,9.947e-05,2]
[344670215,1733716252017,-500.0,9.947e-05,2]
[344670216,1733716252027,-971.61,9.947e-05,2]
[344670217,1733716252036,-971.61,9.947e-05,2]
[344670218,1733716252046,-1524.8,9.947e-05,2]
[344670219,1733716252055,-500.0,9.947e-05,2]
[344670220,1733716252067,-500.0,9.947e-05,2]
[344670221,1733716252076,-500.0,9.947e-05,2]
[344670222,1733716252085,-500.0,9.947e-05,2]
[344670223,1733716252094,-863.97,9.947e-05,2]
[344670224,1733716252104,-6547.63,9.947e-05,2]
[344670225,1733716252114,-6547.63,9.947e-05,2]
[344670226,1733716252125,-500.0,9.947e-05,2]
[344670227,1733716252134,-500.0,9.947e-05,2]
[344670228,1733716252145,-500.0,9.947e-05,2]
[344670229,1733716252155,-585.38,9.947e-05,2]
[344670230,1733716252164,-500.0,9.947e-05,2]
[344670231,1733716252173,-585.38,9.947e-05,2]
[344670232,1733716252182,-500.0,9.947e-05,2]
[344670233,1733716252191,-585.38,9.947e-05,2]
[344670234,1733716252201,-500.0,9.947e-05,2]
[344670235,1733716252210,-500.0,9.947e-05,2]
[344670236,1733716252219,-500.0,9.947e-05,2]
[344670237,1733716252229,-500.0,9.947e-05,2]
[344670238,1733716252239,-7850.16,9.947e-05,2]
[344670239,1733716252249,-7850.16,9.947e-05,2]
[344670240,1733716252259,-4828.23,9.947e-05,2]
[344670241,1733716252268,-223.52254,9.947e-05,2]
[344670242,1733716252278,-1707.37,9.947e-05,2]
[344670243,1733716252287,-1756.115019,9.947e-05,2]
[344670244,1733716252296,-1756.115019,9.947e-05,2]
[344670245,1733716252305,-223.52254,9.947e-05,2]
[344670246,1733716252318,-739.26,9.947e-05,2]
[344670247,1733716252327,-500.0,9.947e-05,2]
[344670248,1733716252337,-739.26,9.947e-05,2]
[344670249,1733716252347,-500.0,9.947e-05,2]
[344670250,1733716252357,-500.0,9.947e-05,2]
[344670251,1733716252366,-500.0,9.947e-05,2]
[344670252,1733716252375,-500.0,9.947e-05,2]
[344670253,1733716252385,-500.0,9.947e-05,2]
[344670254,1733716252394,-767.6,9.947e-05,2]
[344670255,1733716252404,-711.26,9.947e-05,2]
[344670256,1733716252414,-711.26,9.947e-05,2]
[344670257,1733716252424,-711.26,9.947e-05,2]
[344670258,1733716252433,-500.0,9.947e-05,2]
[344670259,1733716252443,-500.0,9.947e-05,2]
[344670260,1733716252454,-500.0,9.947e-05,2]
[344670261,1733716252463,-500.0,9.947e-05,2]
[344670262,1733716252472,-14095.65,9.947e-05,2]
[344670263,1733716252481,-14095.65,9.947e-05,2]
[344670264,1733716252490,-3277.21,9.947e-05,2]
[344670265,1733716252499,-500.0,9.947e-05,2]
[344670266,1733716252509,-3277.21,9.947e-05,2]
[344670267,1733716252518,-500.0,9.947e-05,2]
[344670268,1733716252527,-500.0,9.947e-05,2]
[344670269,1733716252536,-500.0,9.947e-05,2]
[344670270,1733716252546,-500.0,9.947e-05,2]
[344670271,1733716252555,-500.0,9.947e-05,2]
[344670272,1733716252566,-500.0,9.947e-05,2]
[344670273,1733716252575,-500.0,9.947e-05,2]
[344670274,1733716252584,-6219.98,9.947e-05,2]
[344670275,1733716252594,-4899.15,9.947e-05,2]
[344670276,1733716252602,-4899.15,9.947e-05,2]
[344670277,1733716252612,-558.05,9.947e-05,2]
[344670278,1733716252623,-721.88,9.947e-05,2]
[344670279,1733716252633,-721.88,9.947e-05,2]
[344670280,1733716252643,-721.88,9.947e-05,2]
[344670281,1733716252653,-1102.94,9.947e-05,2]
[344670282,1733716252663,-1102.94,9.947e-05,2]
[344670283,1733716252672,-1102.94,9.947e-05,2]
[344670284,1733716252681,-2906.91,9.947e-05,2]
[344670285,1733716252690,-2906.91,9.947e-05,2]
[344670286,1733716252700,-530.1,9.947e-05,2]
[344670287,1733716252709,-526.67,9.947e-05,2]
[344670288,1733716252719,-530.1,9.947e-05,2]
[344670289,1733716252728,-530.1,9.947e-05,2]
[344670290,1733716252737,-2785.83,9.947e-05,2]
[344670291,1733716252747,-500.0,9.947e-05,2]
[344670292,1733716252756,-500.0,9.947e-05,2]
[344670293,1733716252765,-500.0,9.947e-05,2]
[344670294,1733716252774,-2101.97,9.947e-05,2]
[344670295,1733716252783,-1341.41,9.947e-05,2]
[344670296,1733716252795,-2389.37,9.947e-05,2]
[344670297,1733716252804,-1341.41,9.947e-05,2]
[344670298,1733716252816,-2389.37,9.947e-05,2]
[344670299,1733716252826,-1341.41,9.947e-05,2]
[344670300,1733716252835,-927.72,9.947e-05,2]
[344670301,1733716252844,-927.72,9.947e-05,2]
[344670302,1733716252853,-927.72,9.947e-05,2]
[344670303,1733716252863,-519.11,9.947e-05,2]
[344670304,1733716252872,-519.11,9.947e-05,2]
[344670305,1733716252881,-500.0,9.947e-05,2]
[344670306,1733716252890,-500.0,9.947e-05,2]
[344670307,1733716252899,-500.0,9.947e-05,2]
[344670308,1733716252908,-516.53,9.947e-05,2]
[344670309,1733716252918,-500.0,9.947e-05,2]
[344670310,1733716252927,-4717.92,9.947e-05,2]
[344670311,1733716252936,-547.34,9.947e-05,2]
[344670312,1733716252945,-8120.02,9.947e-05,2]
[344670313,1733716252955,-8120.02,9.947e-05,2]
[344670314,1733716252964,-547.34,9.947e-05,2]
[344670315,1733716252973,-547.34,9.947e-05,2]
[344670316,1733716252982,-500.0,9.947e-05,2]
[344670317,1733716252992,-1589.85,9.947e-05,2]
[344670318,1733716253001,-500.0,9.947e-05,2]
[344670319,1733716253011,-1589.85,9.947e-05,2]
[344670320,1733716253020,-500.0,9.947e-05,2]
[344670321,1733716253031,-1589.85,9.947e-05,2]
[344670322,1733716253041,-5132.38,9.947e-05,2]
[344670323,1733716253052,-500.0,9.947e-05,2]
[344670324,1733716253062,-5132.38,9.947e-05,2]
[344670325,1733716253073,-500.0,9.947e-05,2]
[344670326,1733716253082,-500.0,9.947e-05,2]
[344670327,1733716253090,-691.76,9.947e-05,2]
[344670328,1733716253099,-691.76,9.947e-05,2]
[344670329,1733716253108,-691.76,9.947e-05,2]
[344670330,1733716253119,-3316.95,9.947e-05,2]
[344670331,1733716253128,-602.11,9.947e-05,2]
[344670332,1733716253138,-500.0,9.947e-05,2]